bitfinex/quotes_SOLUSD_20250413
["timestamp","ask_amount","ask_price","bid_price","bid_amount"]
[1744574822891,41.10301065,128.9,128.85,41.10301065]
[1744574823298,27.1485,128.92,128.85,41.10301065]
[1744574823486,7.7549,128.95,128.89,41.10301065]
[1744574823799,41.10301065,128.93,128.88,41.10301065]
[1744574823981,41.10301065,128.93,128.87,41.10301065]
[1744574824703,7.7567,128.92,128.87,41.10301065]
[1744574826198,41.10301065,128.89,128.83,7.7621]
[1744574826506,41.10301065,128.91,128.85,41.10301065]
[1744574827381,7.7579,128.9,128.85,48.86371065]
[1744574827799,7.7579,128.9,128.85,41.10301065]
[1744574828007,48.86091065,128.9,128.84,41.10301065]
[1744574828500,7.7579,128.9,128.85,41.10301065]
[1744574829682,27.1527,128.9,128.81,0.063]
[1744574830028,7.7579,128.9,128.85,41.10301065]
[1744574830381,48.86091065,128.9,128.81,26.47574886]
[1744574830718,7.7579,128.9,128.85,41.10301065]
[1744574831083,41.10301065,128.89,128.81,0.063]
[1744574831491,48.86091065,128.9,128.84,41.10301065]
[1744574831899,41.10301065,128.88,128.83,41.10301065]
[1744574832310,41.10301065,128.88,128.81,0.063]
[1744574832602,41.10301065,128.87,128.82,41.10301065]
[1744574832822,7.7579,128.9,128.84,41.10301065]
[1744574833023,41.10301065,128.89,128.84,41.10301065]
[1744574833195,26.96870068,128.89,128.83,26.96870068]
[1744574834124,26.96870068,128.86,128.81,0.063]
[1744574834300,26.96870068,128.85,128.81,0.063]
[1744574834706,26.96870068,128.86,128.81,0.063]
[1744574835101,19.3991,128.88,128.81,0.063]
[1744574835303,26.96870068,128.9,128.85,26.96870068]
[1744574835708,26.96870068,128.89,128.81,18.71264886]
[1744574835922,26.96870068,128.89,128.84,26.96870068]
[1744574836106,26.96870068,128.9,128.84,26.96870068]
[1744574836442,0.28432314,128.9,128.82,26.96870068]
[1744574836607,26.96870068,128.88,128.82,26.96870068]
[1744574836802,26.96870068,128.88,128.81,0.063]
[1744574836803,26.96870068,128.87,128.81,27.03170068]
[1744574837005,26.96870068,128.86,128.81,0.063]
[1744574837207,34.72960068,128.85,128.81,0.063]
[1744574837812,7.7609,128.85,128.81,0.063]
[1744574839324,26.96870068,128.84,128.81,0.063]
[1744574840506,7.7609,128.85,128.81,0.063]
[1744574840916,26.96870068,128.84,128.81,0.063]
[1744574841109,27.1603,128.87,128.81,0.063]
[1744574841315,50.6703,128.87,128.81,0.063]
[1744574841603,27.1603,128.87,128.81,0.063]
[1744574841808,26.96870068,128.84,128.81,0.063]
[1744574842816,26.96870068,128.83,128.81,0.063]
[1744574843225,7.7627,128.82,128.81,0.063]
[1744574844417,34.73140068,128.82,128.81,0.063]
[1744574844811,26.96870068,128.85,128.81,0.063]
[1744574845130,102.2965,128.89,128.81,27.03170068]
[1744574845321,7.7573,128.91,128.85,26.96870068]
[1744574845506,26.96870068,128.9,128.85,26.96870068]
[1744574845707,26.96870068,128.89,128.84,26.96870068]
[1744574846434,34.72760068,128.89,128.84,26.96870068]
[1744574847032,7.7555,128.94,128.86,26.96870068]
[1744574847240,26.96870068,128.9,128.85,26.96870068]
[1744574847613,26.96870068,128.89,128.83,34.73030068]
[1744574847812,26.96870068,128.87,128.82,26.96870068]
[1744574848133,26.0,128.89,128.83,26.96870068]
[1744574848511,60.72740068,128.89,128.84,7.7615]
[1744574848711,26.96870068,128.88,128.83,26.96870068]
[1744574849635,34.72740068,128.89,128.84,26.96870068]
[1744574850236,26.96870068,128.9,128.85,26.96870068]
[1744574850530,7.7576,128.91,128.86,34.72900068]
[1744574850913,34.72630068,128.91,128.86,34.72900068]
[1744574851643,82.9,128.95,128.88,26.96870068]
[1744574852127,26.96870068,128.94,128.89,26.96870068]
[1744574852441,26.96870068,128.95,128.9,26.96870068]
[1744574852611,6.2904,129.0,128.89,0.14216157]
[1744574852813,26.96870068,128.99,128.89,0.42648471]
[1744574853011,26.96870068,128.99,128.93,26.96870068]
[1744574853234,26.96870068,128.98,128.93,26.96870068]
[1744574853543,13.64,129.02,128.91,20.20114886]
[1744574853835,26.96870068,129.01,128.96,26.96870068]
[1744574854821,26.96870068,129.0,128.95,33.23250068]
[1744574855216,26.96870068,129.01,128.96,26.96870068]
[1744574855422,7.7501,129.03,128.95,33.23250068]
[1744574855719,26.96870068,129.0,128.96,7.7543]
[1744574855920,34.72000068,129.01,128.96,34.72300068]
[1744574856114,70.50174163,129.04,128.97,26.96870068]
[1744574856327,26.96870068,129.0,128.95,14.0185]
[1744574856629,26.96870068,128.97,128.93,7.7557]
[1744574857214,26.96870068,128.95,128.91,7.8153]
[1744574857619,26.96870068,128.95,128.92,2.88823352]
[1744574857620,34.72360068,128.95,128.92,2.88823352]
[1744574858039,26.96870068,128.94,128.92,2.88823352]
[1744574858341,26.96870068,128.93,128.92,2.88823352]
[1744574858534,26.96870068,128.93,128.87,34.66290068]
[1744574858740,26.96870068,128.92,128.87,42.42210068]
[1744574858919,26.96870068,128.93,128.88,26.96870068]
[1744574859115,26.96870068,128.92,128.87,15.4534]
[1744574859426,26.96870068,128.91,128.88,2.88610131]
[1744574859626,34.72610068,128.91,128.88,2.88610131]
[1744574859939,26.96870068,128.92,128.88,2.88610131]
[1744574860139,7.7555,128.94,128.87,7.7597]
[1744574860315,26.96870068,128.92,128.86,34.72880068]
[1744574860515,26.96870068,128.91,128.86,34.72880068]
[1744574860717,26.96870068,128.9,128.85,7.7607]
[1744574860937,27.1443,128.94,128.86,2.8856524]
[1744574860938,26.96870068,128.91,128.86,2.8856524]
[1744574861137,26.96870068,128.91,128.86,29.85435308]
[1744574861339,26.96870068,128.91,128.86,2.8856524]
[1744574861641,19.3888,128.94,128.87,2.8856524]
[1744574861837,38.7707,128.97,128.87,10.6451524]
[1744574861838,7.7537,128.97,128.87,10.6451524]
[1744574862042,34.72240068,128.97,128.91,26.96870068]
[1744574862226,108.05646533,129.04,128.95,26.96870068]
[1744574862431,7.7501,129.03,128.96,26.96870068]
[1744574862640,26.96870068,128.99,128.92,7.678]
[1744574862945,26.96870068,129.0,128.95,26.96870068]
[1744574863140,26.96870068,128.99,128.92,7.678]
[1744574863440,26.96870068,128.99,128.94,26.96870068]
[1744574863645,34.72130068,128.99,128.93,7.7561]
[1744574863838,102.2753,129.03,128.94,26.96870068]
[1744574863839,34.72070068,129.0,128.94,26.96870068]
[1744574864223,26.96870068,128.99,128.94,26.96870068]
[1744574864422,26.96870068,128.98,128.93,34.72480068]
[1744574864622,19.3768,129.02,128.93,7.7561]
[1744574864842,26.96870068,128.99,128.93,7.7561]
[1744574865028,26.96870068,128.99,128.93,34.72480068]
[1744574865227,26.96870068,129.0,128.94,26.96870068]
[1744574865429,26.96870068,128.98,128.93,34.72480068]
[1744574865629,27.1275,129.02,128.93,26.96870068]
[1744574865841,26.96870068,128.99,128.93,26.96870068]
[1744574866036,27.1275,129.02,128.93,7.7561]
[1744574866236,26.96870068,128.99,128.94,26.96870068]
[1744574866457,26.96870068,129.01,128.96,26.96870068]
[1744574866720,7.7507,129.02,128.96,26.96870068]
[1744574867026,26.96870068,129.01,128.96,26.96870068]
[1744574867643,26.96870068,129.01,128.96,34.72280068]
[1744574867847,34.72010068,129.01,128.96,34.72280068]
[1744574868441,7.7509,129.02,128.96,34.72280068]
[1744574868753,7.7495,129.04,128.98,26.96870068]
[1744574868952,26.96870068,129.0,128.94,7.7555]
[1744574869129,26.96870068,128.98,128.93,34.72460068]
[1744574869334,26.96870068,128.97,128.92,15.4345]
[1744574869531,7.7538,128.97,128.91,34.72590068]
[1744574869730,34.72250068,128.97,128.92,26.96870068]
[1744574869936,26.96870068,128.99,128.93,26.96870068]
[1744574870140,34.72150068,128.99,128.93,26.96870068]
[1744574870348,26.96870068,128.98,128.93,26.96870068]
[1744574871143,26.96870068,128.96,128.91,34.72590068]
[1744574871457,26.96870068,128.96,128.91,7.7572]
[1744574871646,26.96870068,128.94,128.89,33.50640068]
[1744574871841,26.96870068,128.94,128.89,41.26480068]
[1744574872148,26.96870068,128.93,128.89,6.5377]
[1744574872357,26.96870068,128.92,128.88,1.608]
[1744574872861,26.96870068,128.92,128.86,41.32880068]
[1744574873157,26.0,128.95,128.88,26.96870068]
[1744574873348,26.96870068,128.94,128.88,26.96870068]
[1744574873753,26.96870068,128.93,128.88,34.72750068]
[1744574874755,26.96870068,128.93,128.88,26.96870068]
[1744574874963,26.96870068,128.91,128.86,33.56860068]
[1744574875434,26.96870068,128.92,128.86,33.56860068]
[1744574875835,26.96870068,128.91,128.86,6.5999]
[1744574876063,26.96870068,128.91,128.86,33.56860068]
[1744574876357,27.1469,128.93,128.86,6.5999]
[1744574876566,26.96870068,128.91,128.86,33.56860068]
[1744574876737,27.1469,128.93,128.86,6.5999]
[1744574876738,26.96870068,128.9,128.86,6.5999]
[1744574876937,7.7585,128.89,128.86,6.5999]
[1744574877157,34.72720068,128.89,128.84,1.6033]
[1744574877356,34.72720068,128.89,128.84,28.57200068]
[1744574877666,34.72720068,128.89,128.84,1.6033]
[1744574878163,34.72720068,128.89,128.84,28.57200068]
[1744574878341,26.96870068,128.88,128.83,6.5999]
[1744574878742,26.96870068,128.87,128.83,6.5999]
[1744574878942,7.7603,128.86,128.82,27.03170068]
[1744574879157,26.96870068,128.88,128.82,34.79440068]
[1744574879358,34.72780068,128.88,128.82,27.03170068]
[1744574879564,34.72780068,128.88,128.83,26.96870068]
[1744574879861,26.96870068,128.91,128.86,26.96870068]
[1744574880160,26.96870068,128.9,128.85,26.96870068]
[1744574880363,26.96870068,128.91,128.86,26.96870068]
[1744574880561,7.7567,128.92,128.86,26.96870068]
[1744574880746,7.7567,128.92,128.87,26.96870068]
[1744574880945,26.96870068,128.91,128.86,26.96870068]
[1744574881266,26.96870068,128.89,128.83,26.96870068]
[1744574881485,26.96870068,128.88,128.83,26.96870068]
[1744574881644,26.96870068,128.89,128.83,26.96870068]
[1744574881842,26.96870068,128.89,128.84,26.96870068]
[1744574882039,26.96870068,128.87,128.82,27.03170068]
[1744574882238,26.96870068,128.87,128.82,0.063]
[1744574882444,26.96870068,128.87,128.82,27.03170068]
[1744574882652,0.28432314,128.91,128.83,26.96870068]
[1744574882653,19.07613357,128.91,128.83,26.96870068]
[1744574882864,26.96870068,128.89,128.83,26.96870068]
[1744574883040,7.7591,128.88,128.84,26.96870068]
[1744574883367,7.7579,128.9,128.85,26.96870068]
[1744574883543,34.72660068,128.9,128.84,26.96870068]
[1744574883744,7.7579,128.9,128.85,26.96870068]
[1744574884064,34.72660068,128.9,128.85,26.96870068]
[1744574884464,34.72660068,128.9,128.82,7.8252]
[1744574884465,26.96870068,128.88,128.82,0.063]
[1744574884659,26.96870068,128.87,128.82,27.03170068]
[1744574885163,26.96870068,128.88,128.83,26.96870068]
[1744574886674,7.7597,128.87,128.82,0.063]
[1744574886964,7.7597,128.87,128.82,34.79440068]
[1744574887670,7.7597,128.87,128.83,26.96870068]
[1744574888263,7.7567,128.92,128.86,26.96870068]
[1744574888566,34.72540068,128.92,128.87,26.96870068]
[1744574888741,26.96870068,128.91,128.86,26.96870068]
[1744574888936,26.96870068,128.89,128.84,26.96870068]
[1744574889240,0.28432314,128.91,128.82,7.8255]
[1744574889241,26.96870068,128.88,128.82,27.03170068]
[1744574890370,7.7597,128.87,128.82,27.03170068]
[1744574890743,7.7597,128.87,128.82,34.79430068]
[1744574891262,7.7597,128.87,128.83,26.96870068]
[1744574891477,7.7593,128.88,128.84,26.96870068]
[1744574892473,19.3918,128.92,128.85,26.96870068]
[1744574892646,26.96870068,128.9,128.85,26.96870068]
[1744574892846,26.96870068,128.91,128.85,26.96870068]
[1744574893044,27.1485,128.92,128.85,26.96870068]
[1744574893349,7.7567,128.92,128.88,26.96870068]
[1744574893652,26.96870068,128.9,128.83,7.7619]
[1744574893848,26.96870068,128.9,128.82,7.8255]
[1744574894064,26.96870068,128.89,128.84,26.96870068]
[1744574894453,7.7585,128.89,128.84,26.96870068]
[1744574894854,7.7585,128.89,128.85,26.96870068]
[1744574895669,7.7585,128.89,128.84,7.7614]
[1744574895849,7.7585,128.89,128.84,26.96870068]
[1744574895850,34.72720068,128.89,128.84,26.96870068]
[1744574896048,34.72720068,128.89,128.82,0.063]
[1744574896364,34.72720068,128.89,128.83,26.96870068]
[1744574896565,34.72720068,128.89,128.84,26.96870068]
[1744574897248,24.61415226,128.89,128.84,16.85565226]
[1744574898072,24.61415226,128.89,128.82,0.063]
[1744574898272,16.85565226,128.88,128.83,16.85565226]
[1744574898771,24.61415226,128.89,128.83,24.61765226]
[1744574900569,24.61415226,128.89,128.82,0.063]
[1744574900767,24.61415226,128.89,128.83,16.85565226]
[1744574901074,16.85565226,128.88,128.83,16.85565226]
[1744574901773,7.7597,128.87,128.83,16.85565226]
[1744574901976,7.7585,128.89,128.82,24.68125226]
[1744574902175,82.9,128.94,128.88,16.85565226]
[1744574902367,16.85565226,128.91,128.85,16.85565226]
[1744574902557,16.85565226,128.89,128.84,16.85565226]
[1744574902871,16.85565226,128.88,128.82,0.063]
[1744574903082,16.85565226,128.88,128.82,24.68125226]
[1744574903379,16.85565226,128.87,128.82,7.8256]
[1744574903576,16.85565226,128.85,128.82,0.063]
[1744574904180,16.85565226,128.88,128.83,16.85565226]
[1744574904346,24.61355226,128.9,128.85,16.85565226]
[1744574904551,16.85565226,128.89,128.84,16.85565226]
[1744574904753,16.85565226,128.89,128.83,16.85565226]
[1744574905857,24.61445226,128.89,128.84,7.7615]
[1744574906051,24.61445226,128.89,128.82,0.063]
[1744574906052,16.85565226,128.87,128.82,0.063]
[1744574906261,16.85565226,128.88,128.82,16.91865226]
[1744574906985,16.85565226,128.87,128.82,16.91865226]
[1744574907165,24.61555226,128.87,128.82,24.68115226]
[1744574907366,16.85565226,128.86,128.82,7.8255]
[1744574907665,24.61555226,128.87,128.82,24.68115226]
[1744574907877,7.7599,128.87,128.83,16.85565226]
[1744574908084,8.04162314,128.91,128.83,16.85565226]
[1744574908383,8.04162314,128.91,128.84,16.85565226]
[1744574908554,16.85565226,128.89,128.84,16.85565226]
[1744574908759,16.85565226,128.88,128.83,16.85565226]
[1744574909160,7.7591,128.88,128.83,24.61735226]
[1744574909498,16.85565226,128.89,128.84,16.85565226]
[1744574909785,16.85565226,128.89,128.83,7.7617]
[1744574909786,24.61305226,128.91,128.86,16.85565226]
[1744574909957,24.61255226,128.92,128.87,16.85565226]
[1744574910158,16.85565226,128.94,128.89,16.85565226]
[1744574910402,6.3202,128.98,128.87,6.1339]
[1744574910403,6.3202,128.98,128.92,16.85565226]
[1744574910571,24.60895226,128.98,128.93,16.85565226]
[1744574910772,24.60755226,129.0,128.95,16.85565226]
[1744574911086,24.60715226,129.01,128.96,16.85565226]
[1744574911285,24.60695226,129.01,128.96,24.60965226]
[1744574911967,26.0,128.93,128.86,8.34777123]
[1744574912185,16.85565226,128.9,128.85,16.85565226]
[1744574912361,16.85565226,128.9,128.84,7.7615]
[1744574912682,83.18432314,128.95,128.86,2.88553916]
[1744574912883,16.85565226,128.91,128.86,19.74119142]
[1744574913261,16.85565226,128.91,128.86,16.85565226]
[1744574913582,16.85565226,128.91,128.86,24.61585226]
[1744574913796,7.756,128.94,128.88,16.85565226]
[1744574914004,7.756,128.94,128.87,2.88765023]
[1744574914286,16.85565226,128.92,128.87,19.74330249]
[1744574914587,16.85565226,128.92,128.87,2.88765023]
[1744574914775,16.85565226,128.91,128.87,2.88765023]
[1744574915083,16.85565226,128.91,128.86,24.61595226]
[1744574915692,24.61305226,128.91,128.86,24.61595226]
[1744574916782,24.61305226,128.91,128.87,2.89246138]
[1744574917286,24.61305226,128.91,128.86,24.61595226]
[1744574918594,24.61305226,128.91,128.87,2.89385381]
[1744574919397,16.85565226,128.9,128.86,7.7603]
[1744574919887,16.85565226,128.9,128.83,38.05494886]
[1744574919888,16.85565226,128.89,128.82,0.063]
[1744574920071,16.85565226,128.89,128.84,16.85565226]
[1744574920489,16.85565226,128.89,128.85,2.8949146]
[1744574921594,16.85565226,128.89,128.86,2.8949146]
[1744574921796,24.61415226,128.89,128.86,2.8949146]
[1744574922169,16.85565226,128.88,128.86,2.8949146]
[1744574922373,16.85565226,128.88,128.85,2.8949146]
[1744574922694,7.7585,128.89,128.85,2.8949146]
[1744574922881,24.61415226,128.89,128.85,2.8949146]
[1744574923084,16.85565226,128.88,128.85,2.8949146]
[1744574924099,7.7597,128.87,128.84,2.8949146]
[1744574924400,24.61535226,128.87,128.84,2.8949146]
[1744574924601,24.61535226,128.87,128.83,2.8949146]
[1744574924970,19.392,128.92,128.85,16.85565226]
[1744574925173,16.85565226,128.9,128.85,16.85565226]
[1744574925591,16.85565226,128.9,128.86,2.8949146]
[1744574925996,24.61385226,128.9,128.86,10.6552146]
[1744574926180,24.61385226,128.9,128.85,16.85565226]
[1744574926181,24.61335226,128.91,128.87,2.8949146]
[1744574926385,16.85565226,128.9,128.87,2.8949146]
[1744574926601,16.85565226,128.89,128.87,2.8949146]
[1744574926804,16.85565226,128.88,128.85,2.8949146]
[1744574927189,16.85565226,128.87,128.85,2.8949146]
[1744574927398,16.85565226,128.89,128.85,2.8949146]
[1744574927701,16.85565226,128.88,128.84,2.8949146]
[1744574928080,24.61525226,128.88,128.84,2.8949146]
[1744574930006,24.61435226,128.89,128.84,27.51186686]
[1744574930189,24.61435226,128.89,128.85,2.8949146]
[1744574931103,24.61435226,128.89,128.84,2.8949146]
[1744574931479,24.61435226,128.89,128.84,10.6564146]
[1744574931786,24.61435226,128.89,128.85,2.8949146]
[1744574932194,27.1506,128.91,128.85,2.8949146]
[1744574932396,16.85565226,128.89,128.85,2.8949146]
[1744574932594,16.85565226,128.88,128.85,2.8949146]
[1744574932789,16.85565226,128.87,128.85,2.8949146]
[1744574933007,16.85565226,128.86,128.85,2.8949146]
[1744574933493,16.85565226,128.86,128.83,2.8949146]
[1744574935004,24.61625226,128.86,128.83,2.8949146]
[1744574935513,7.7606,128.86,128.83,2.8949146]
[1744574935698,24.61625226,128.86,128.83,2.8949146]
[1744574936905,24.61625226,128.86,128.84,2.8949146]
[1744574937701,27.1553,128.89,128.84,2.8949146]
[1744574937894,16.85565226,128.87,128.83,2.8949146]
[1744574939810,7.7603,128.86,128.83,2.8949146]
[1744574940318,7.7603,128.86,128.84,2.8949146]
[1744574941307,7.7603,128.86,128.83,2.8949146]
[1744574942814,24.61595226,128.86,128.83,2.8949146]
[1744574943120,24.61555226,128.87,128.83,10.6569146]
[1744574943415,10.78925136,128.93,128.86,10.78925136]
[1744574943711,10.78925136,128.92,128.87,10.78925136]
[1744574943914,10.78925136,128.91,128.87,10.78925136]
[1744574944221,10.78925136,128.9,128.82,0.063]
[1744574944397,10.78925136,128.87,128.82,18.61475136]
[1744574944996,10.78925136,128.87,128.82,7.8255]
[1744574945198,10.78925136,128.87,128.82,18.61475136]
[1744574945401,18.54905136,128.87,128.82,18.61475136]
[1744574945600,18.54905136,128.87,128.83,2.89569045]
[1744574946114,10.78925136,128.88,128.83,13.68494181]
[1744574946309,98.79322369,128.94,128.85,10.78925136]
[1744574946310,10.78925136,128.9,128.85,10.78925136]
[1744574946520,10.78925136,128.91,128.86,10.78925136]
[1744574946814,10.78925136,128.89,128.84,13.68494181]
[1744574947126,10.78925136,128.91,128.86,10.78925136]
[1744574947296,18.54415136,128.95,128.9,10.78925136]
[1744574947499,7.7549,128.95,128.89,18.54745136]
[1744574947700,10.78925136,128.94,128.89,18.54745136]
[1744574948900,10.78925136,128.93,128.9,2.89403333]
[1744574949098,7.7556,128.94,128.9,2.89403333]
[1744574949296,16.8469017,128.91,128.9,2.89403333]
[1744574949894,16.8469017,128.91,128.83,16.8469017]
[1744574950099,16.8469017,128.88,128.83,16.8469017]
[1744574950315,16.8469017,128.89,128.84,16.8469017]
[1744574950705,16.8469017,128.89,128.85,2.89513221]
[1744574951231,16.8469017,128.88,128.85,2.89513221]
[1744574951728,16.8469017,128.88,128.86,2.89513221]
[1744574952429,16.8469017,128.89,128.85,2.89513221]
[1744574952631,16.8469017,128.93,128.88,16.8469017]
[1744574952920,16.8469017,128.91,128.86,16.8469017]
[1744574953301,16.8469017,128.91,128.87,2.89513221]
[1744574953611,24.6037017,128.92,128.87,27.50143391]
[1744574953814,16.8469017,128.91,128.87,2.89513221]
[1744574954212,16.8469017,128.91,128.86,16.8469017]
[1744574954403,7.7549,128.95,128.88,16.8469017]
[1744574954603,16.8469017,128.92,128.87,16.8469017]
[1744574955114,16.8469017,128.92,128.88,2.89489785]
[1744574955834,16.8469017,128.91,128.86,24.6066017]
[1744574956325,24.6040017,128.92,128.87,2.89492857]
[1744574956832,16.8469017,128.89,128.87,2.89492857]
[1744574957128,27.1489,128.92,128.88,2.89492857]
[1744574957338,16.8469017,128.89,128.88,2.89492857]
[1744574957705,16.8469017,128.89,128.85,2.89492857]
[1744574957913,16.8469017,128.88,128.85,2.89492857]
[1744574958440,27.1489,128.92,128.84,2.89492857]
[1744574958728,16.8469017,128.88,128.84,2.89492857]
[1744574959111,24.6066017,128.88,128.84,2.89492857]
[1744574959316,19.3946,128.91,128.85,2.89492857]
[1744574959634,16.8469017,128.88,128.85,2.89492857]
[1744574960022,7.7579,128.9,128.85,2.89492857]
[1744574960217,16.8469017,128.88,128.84,2.89492857]
[1744574961121,7.7603,128.86,128.85,2.89492857]
[1744574961307,26.0,128.9,128.85,2.89492857]
[1744574961507,16.8469017,128.88,128.85,2.89492857]
[1744574961927,45.3952,128.9,128.85,2.89492857]
[1744574962145,16.8469017,128.88,128.85,2.89492857]
[1744574962440,16.8469017,128.88,128.84,10.65642857]
[1744574962620,16.8469017,128.88,128.84,2.89492857]
[1744574962811,16.8469017,128.87,128.84,2.89492857]
[1744574963228,24.6066017,128.87,128.85,2.89492857]
[1744574964129,26.0,128.84,128.83,2.89492857]
[1744574964333,26.0,128.84,128.82,0.063]
[1744574964334,42.8469017,128.84,128.82,0.063]
[1744574964532,16.8469017,128.83,128.82,0.063]
[1744574965734,16.8469017,128.85,128.82,0.063]
[1744574966135,24.6072017,128.86,128.82,0.063]
[1744574967244,16.8469017,128.84,128.82,0.063]
[1744574967615,24.6085017,128.84,128.82,0.063]
[1744574967936,16.8469017,128.83,128.82,0.063]
[1744574968321,7.7616,128.84,128.82,0.063]
[1744574968522,16.8469017,128.83,128.82,0.063]
[1744574969736,16.8469017,128.84,128.82,0.063]
[1744574970645,24.6080017,128.85,128.82,0.063]
[1744574971138,16.8469017,128.87,128.82,16.9099017]
[1744574971325,16.8469017,128.88,128.83,16.8469017]
[1744574971634,16.8469017,128.87,128.82,16.9099017]
[1744574971835,7.7603,128.86,128.82,16.9099017]
[1744574972146,3.97416938,128.94,128.86,18.64964886]
[1744574972435,3.97416938,128.94,128.9,16.8469017]
[1744574972627,16.8469017,128.93,128.88,16.8469017]
[1744574972932,28.57667108,128.94,128.88,16.8469017]
[1744574973140,16.8469017,128.96,128.91,16.8469017]
[1744574973834,24.6015017,128.96,128.91,24.6039017]
[1744574974131,24.6015017,128.96,128.9,24.6046017]
[1744574975139,34.69627221,128.96,128.91,26.94167221]
[1744574976428,34.69627221,128.96,128.91,34.69877221]
[1744574977540,26.94167221,128.95,128.9,34.69937221]
[1744574977841,26.94167221,128.94,128.88,26.94167221]
[1744574978143,26.94167221,128.95,128.9,26.94167221]
[1744574978844,7.7555,128.94,128.9,26.94167221]
[1744574979052,34.69717221,128.94,128.89,34.69997221]
[1744574979242,7.7555,128.94,128.87,26.94167221]
[1744574979444,26.94167221,128.92,128.87,26.94167221]
[1744574979647,26.94167221,128.9,128.85,26.94167221]
[1744574979819,26.94167221,128.87,128.83,18.1037]
[1744574980021,26.94167221,128.87,128.82,34.76707221]
[1744574980322,26.94167221,128.83,128.82,0.063]
[1744574980938,34.70377221,128.83,128.82,0.063]
[1744574981841,7.7621,128.83,128.82,0.063]
[1744574982041,34.70377221,128.83,128.82,0.063]
[1744574982217,7.7621,128.83,128.82,0.063]
[1744574982419,26.94167221,128.83,128.82,0.063]
[1744574982626,7.7603,128.86,128.82,0.063]
[1744574983045,34.70337221,128.84,128.82,0.063]
[1744574983247,7.7603,128.86,128.82,0.063]
[1744574983550,34.70197221,128.86,128.82,0.063]
[1744574983729,7.7603,128.86,128.82,0.063]
[1744574983925,34.70197221,128.86,128.82,0.063]
[1744574984626,7.7603,128.86,128.82,0.063]
[1744574985149,7.7621,128.83,128.82,0.063]
[1744574985842,26.94167221,128.86,128.82,0.063]
[1744574986650,26.94167221,128.85,128.82,0.063]
[1744574987755,34.70277221,128.85,128.82,0.063]
[1744574988749,26.94167221,128.88,128.82,27.00467221]
[1744574989326,26.94167221,128.87,128.82,0.063]
[1744574989530,26.94167221,128.85,128.82,0.063]
[1744574989738,26.94167221,128.84,128.82,0.063]
[1744574991448,34.70357221,128.84,128.82,0.063]
[1744574991635,26.94167221,128.83,128.82,0.063]
[1744574992055,45.59132107,128.88,128.82,0.063]
[1744574992056,34.70267221,128.85,128.82,0.063]
[1744574993951,26.94167221,128.84,128.82,0.063]
[1744574994163,26.94167221,128.83,128.82,0.063]
[1744574994458,46.01780578,128.83,128.82,0.0001]
[1744574994837,26.28432314,128.81,128.8,0.063]
[1744574995032,98.95947799,128.81,128.8,0.0001]
[1744574995233,18.79181043,128.8,128.79,0.063]
[1744574995567,26.28432314,128.77,128.76,0.063]
[1744574995863,53.22599535,128.77,128.76,0.063]
[1744574996156,79.78350578,128.77,128.76,0.0001]
[1744574996360,18.79181043,128.76,128.73,0.063]
[1744574996667,27.22599535,128.75,128.73,0.063]
[1744574997755,46.01780578,128.75,128.74,0.0001]
[1744574997963,46.01780578,128.75,128.73,0.063]
[1744574997964,18.79181043,128.74,128.73,0.0001]
[1744574998154,18.79181043,128.74,128.72,0.063]
[1744574998155,26.28432314,128.71,128.7,0.063]
[1744574998356,60.71107221,128.71,128.7,0.063]
[1744574999948,7.7694,128.71,128.7,0.063]
[1744575000144,26.94167221,128.73,128.7,0.063]
[1744575000852,7.90906157,128.75,128.7,0.063]
[1744575001069,26.94167221,128.71,128.7,0.063]
[1744575001592,7.7691,128.72,128.7,0.063]
[1744575001593,34.71077221,128.72,128.7,0.063]
[1744575002464,26.94167221,128.71,128.7,0.063]
[1744575003151,52.94167221,128.71,128.7,0.063]
[1744575004468,79.78720578,128.71,128.7,0.063]
[1744575007161,19.07613357,128.7,128.69,0.063]
[1744575007354,46.01780578,128.7,128.69,0.0001]
[1744575007761,53.78780578,128.7,128.69,0.0001]
[1744575008458,53.78780578,128.7,128.68,0.0001]
[1744575008661,44.79181043,128.65,128.64,0.063]
[1744575008866,72.01780578,128.65,128.64,0.063]
[1744575009380,0.28432314,128.64,128.62,0.063]
[1744575009667,76.13153357,128.61,128.6,0.0001]
[1744575009869,26.0,128.57,128.52,9.4433]
[1744575010068,109.84167221,128.6,128.55,26.94167221]
[1744575010258,34.71707221,128.61,128.56,26.94167221]
[1744575010573,26.94167221,128.61,128.55,26.94167221]
[1744575011471,109.84167221,128.64,128.58,26.94167221]
[1744575011672,109.84167221,128.64,128.59,26.94167221]
[1744575011673,26.94167221,128.64,128.59,26.94167221]